bitfinex/quotes_BTCUSD_20240803
["timestamp","ask_amount","ask_price","bid_price","bid_amount"]
[1722673584072,0.30678924,61738.0,61737.0,0.74220878]
[1722673584782,0.16658924,61738.0,61737.0,0.74220878]
[1722673587961,0.00913,61738.0,61737.0,0.98517478]
[1722673588384,0.00913,61738.0,61737.0,1.06687478]
[1722673590611,0.00913,61738.0,61737.0,1.24471179]
[1722673592510,0.00913,61738.0,61737.0,1.06687478]
[1722673592731,0.00913,61738.0,61737.0,0.98517478]
[1722673597138,0.00913,61738.0,61737.0,1.12307478]
[1722673597329,0.00913,61738.0,61737.0,1.23763225]
[1722673597856,0.00913,61738.0,61737.0,1.23963225]
[1722673598279,0.00913,61738.0,61737.0,1.23763225]
[1722673599323,0.00913,61738.0,61737.0,1.48059825]
[1722673599551,0.00913,61738.0,61737.0,1.48205268]
[1722673600100,0.00913,61738.0,61737.0,1.23908668]
[1722673600531,0.00913,61738.0,61737.0,1.23708668]
[1722673602905,0.05010828,61753.0,61740.0,0.1378]
[1722673603070,0.0546,61763.0,61761.0,0.242871]
[1722673603191,0.08177179,61773.0,61762.0,0.01]
[1722673603192,0.00913,61773.0,61762.0,0.01]
[1722673603395,0.04842786,61786.0,61784.0,0.12139]
[1722673603626,0.14844179,61788.0,61784.0,0.420471]
[1722673603627,0.0758,61788.0,61784.0,0.420471]
[1722673603780,0.0758,61788.0,61786.0,0.364159]
[1722673603981,0.00913,61792.0,61786.0,0.606932]
[1722673604190,0.0663,61791.0,61788.0,0.121382]
[1722673604398,0.0663,61791.0,61790.0,0.121378]
[1722673604600,0.0663,61791.0,61790.0,0.1290379]
[1722673604601,0.22375924,61791.0,61790.0,0.1290379]
[1722673605049,0.22375924,61791.0,61790.0,0.0076599]
[1722673605459,0.22375924,61791.0,61790.0,0.121378]
[1722673605617,0.22375924,61791.0,61790.0,0.1290379]
[1722673605957,0.22375924,61791.0,61790.0,0.1330379]
[1722673606159,0.22375924,61791.0,61790.0,0.1380379]
[1722673606380,0.22375924,61791.0,61790.0,0.1330379]
[1722673606904,0.22375924,61791.0,61790.0,0.3757949]
[1722673607108,0.22375924,61791.0,61790.0,0.3717949]
[1722673607571,0.22375924,61791.0,61790.0,0.1350379]
[1722673607979,0.22375924,61791.0,61790.0,0.1290379]
[1722673608346,0.21875924,61791.0,61790.0,0.13388832]
[1722673608723,0.21875924,61791.0,61790.0,0.12988832]
[1722673608933,0.21875924,61791.0,61790.0,0.13688832]
[1722673609133,0.21875924,61791.0,61790.0,0.13388832]
[1722673609330,0.21875924,61791.0,61790.0,0.13888832]
[1722673609535,0.21875924,61791.0,61790.0,0.01751032]
[1722673609814,0.21875924,61791.0,61790.0,0.0166599]
[1722673609815,0.58288824,61791.0,61790.0,0.0166599]
[1722673610297,0.34013524,61791.0,61790.0,0.009]
[1722673610608,0.21875924,61791.0,61790.0,0.009]
[1722673611024,0.21875924,61791.0,61790.0,0.13766572]
[1722673611200,0.21875924,61791.0,61790.0,0.13266572]
[1722673611412,0.21875924,61791.0,61790.0,0.12866572]
[1722673611592,0.21975924,61791.0,61790.0,0.12866572]
[1722673611803,0.21975924,61791.0,61790.0,0.37142272]
[1722673612393,0.21875924,61791.0,61790.0,0.61417972]
[1722673612823,0.21975924,61791.0,61790.0,0.37142272]
[1722673613022,0.21875924,61791.0,61790.0,0.37142272]
[1722673613221,0.15745924,61791.0,61790.0,0.61417972]
[1722673613423,0.15745924,61791.0,61790.0,0.37142272]
[1722673613599,0.15745924,61791.0,61790.0,0.61417972]
[1722673613842,0.00913,61792.0,61791.0,0.121376]
[1722673614044,0.16658924,61792.0,61791.0,0.36497942]
[1722673614380,0.16658924,61792.0,61791.0,0.61416972]
[1722673615111,0.00913,61792.0,61791.0,0.61416972]
[1722673615994,0.00913,61792.0,61791.0,0.86792272]
[1722673616204,0.00913,61792.0,61791.0,0.62516972]
[1722673616482,0.00913,61792.0,61791.0,0.62616972]
[1722673616806,0.00913,61792.0,61791.0,0.86892272]
[1722673616919,0.00913,61792.0,61791.0,1.01792272]
[1722673617120,0.00913,61792.0,61791.0,1.11792272]
[1722673617737,0.00913,61792.0,61791.0,1.03972272]
[1722673617982,0.00913,61792.0,61791.0,0.72802014]
[1722673618197,0.00913,61792.0,61791.0,0.74202014]
[1722673618406,0.00913,61792.0,61791.0,0.96992272]
[1722673618610,0.00913,61792.0,61791.0,0.95692272]
[1722673618826,0.00913,61792.0,61791.0,0.98492272]
[1722673619591,0.00913,61792.0,61791.0,1.46337572]
[1722673619794,0.00913,61792.0,61791.0,1.55987572]
[1722673620033,0.00913,61792.0,61791.0,1.61831639]
[1722673620196,0.00913,61792.0,61791.0,1.61631639]
[1722673620837,0.00913,61792.0,61791.0,1.6709391]
[1722673621054,0.00913,61792.0,61791.0,1.6199391]
[1722673621209,0.00913,61792.0,61791.0,1.6339391]
[1722673621410,0.00913,61792.0,61791.0,1.3811861]
[1722673621607,0.00913,61792.0,61791.0,1.3531861]
[1722673621827,0.00913,61792.0,61791.0,1.3811861]
[1722673622049,0.00913,61792.0,61791.0,1.18596339]
[1722673622221,0.00913,61792.0,61791.0,0.72816972]
[1722673622422,0.00913,61792.0,61791.0,0.71416972]
[1722673622762,0.00913,61792.0,61791.0,0.74216972]
[1722673622978,0.00913,61792.0,61791.0,0.72816972]
[1722673623177,0.00913,61792.0,61791.0,0.71416972]
[1722673623634,0.00913,61792.0,61791.0,0.72816972]
[1722673624205,0.00913,61792.0,61791.0,0.74216972]
[1722673624613,0.00913,61792.0,61791.0,0.72816972]
[1722673625139,0.00913,61792.0,61791.0,0.74116972]
[1722673625807,0.00913,61792.0,61791.0,0.72816972]
[1722673626181,0.00913,61792.0,61791.0,0.74216972]
[1722673626615,0.00913,61792.0,61791.0,0.98492272]
[1722673627776,0.00913,61792.0,61791.0,0.97092272]
[1722673628662,0.00913,61792.0,61791.0,0.98492272]
[1722673628868,0.00913,61792.0,61791.0,0.97092272]
[1722673629055,0.00913,61792.0,61791.0,0.98492272]
[1722673629596,0.00913,61792.0,61791.0,0.95692272]
[1722673629841,0.00913,61792.0,61791.0,0.97092272]
[1722673630797,0.00913,61792.0,61791.0,0.72816972]
[1722673631222,0.00913,61792.0,61791.0,0.71416972]
[1722673631440,0.00413,61792.0,61791.0,0.72816972]
[1722673631657,0.00413,61792.0,61791.0,0.74216972]
[1722673631812,0.00413,61792.0,61791.0,0.72816972]
[1722673632219,0.00413,61792.0,61791.0,0.99892272]
[1722673632421,0.00413,61792.0,61791.0,0.97092272]
[1722673632629,0.00413,61792.0,61791.0,0.71416972]
[1722673632823,0.00413,61792.0,61791.0,0.72816972]
[1722673633223,0.00413,61792.0,61791.0,0.49941672]
[1722673633700,0.00413,61792.0,61791.0,0.74216972]
[1722673634159,0.23698924,61792.0,61791.0,0.02128772]
[1722673634389,0.23698924,61792.0,61791.0,0.00728772]
[1722673634588,0.23698924,61792.0,61791.0,0.03528772]
[1722673634750,0.23698924,61792.0,61791.0,0.014]
[1722673634953,0.23698924,61792.0,61791.0,0.0211516]
[1722673635151,0.23698924,61792.0,61791.0,0.1425276]
[1722673635331,0.23698924,61792.0,61791.0,0.1285276]
[1722673635693,0.23698924,61792.0,61791.0,0.1351516]
[1722673635887,0.23698924,61792.0,61791.0,0.1360646]
[1722673636095,0.23698924,61792.0,61791.0,0.1220646]
[1722673637055,0.23698924,61792.0,61791.0,0.0220646]
[1722673637222,0.23698924,61792.0,61791.0,0.1220646]
[1722673637584,0.23698924,61792.0,61791.0,0.2564406]
[1722673638209,0.23698924,61792.0,61791.0,0.4991936]
[1722673639194,0.23698924,61792.0,61791.0,0.2564406]
[1722673639616,0.23698924,61792.0,61791.0,0.1350646]
[1722673640044,0.23698924,61792.0,61791.0,0.0350646]
[1722673640246,0.23698924,61792.0,61791.0,0.1350646]
[1722673641248,0.23698924,61792.0,61791.0,0.2564406]
[1722673641570,0.23698924,61792.0,61791.0,0.1350646]
[1722673641779,0.23698924,61792.0,61791.0,0.0350646]
[1722673641934,0.23698924,61792.0,61791.0,0.2564406]
[1722673644370,0.23698924,61792.0,61791.0,0.4991936]
[1722673645086,0.23698924,61792.0,61791.0,0.2564406]
[1722673645313,0.23698924,61792.0,61791.0,0.1350646]
[1722673645491,0.66411224,61792.0,61791.0,0.0350646]
[1722673645858,0.90686124,61792.0,61791.0,0.027913]
[1722673646378,0.66411224,61792.0,61791.0,0.027913]
[1722673646585,0.66411224,61792.0,61791.0,0.013913]
[1722673646993,0.66411224,61792.0,61791.0,0.017913]
[1722673647196,0.66411224,61792.0,61791.0,0.013913]
[1722673647391,0.66411224,61792.0,61791.0,0.000913]
[1722673647616,0.66411224,61792.0,61791.0,0.003913]
[1722673648234,0.66411224,61792.0,61791.0,0.000913]
[1722673648695,0.66511224,61792.0,61791.0,0.000913]
[1722673650184,0.66511224,61792.0,61791.0,0.0081375]
[1722673650385,0.66511224,61792.0,61791.0,0.000913]
[1722673651088,0.66411224,61792.0,61791.0,0.000913]
[1722673651299,0.66511224,61792.0,61791.0,0.000913]
[1722673651868,0.66411224,61792.0,61791.0,0.000913]
[1722673652300,0.66511224,61792.0,61791.0,0.000913]
[1722673653700,0.66411224,61792.0,61791.0,0.000913]
[1722673653903,0.66511224,61792.0,61791.0,0.000913]
[1722673654532,0.66511224,61792.0,61791.0,0.001913]
[1722673655143,0.66411224,61792.0,61791.0,0.001913]
[1722673658096,0.73031224,61792.0,61791.0,0.001913]
[1722673658298,1.05022016,61792.0,61791.0,0.001913]
[1722673658528,1.09814358,61792.0,61791.0,0.001913]
[1722673658861,1.34089258,61792.0,61791.0,0.001913]
[1722673659241,1.04194358,61792.0,61791.0,0.001913]
[1722673659775,1.04194358,61792.0,61791.0,0.000913]
[1722673659979,0.99402016,61792.0,61791.0,0.000913]
[1722673660173,0.99402016,61792.0,61791.0,0.001913]
[1722673660379,0.50852216,61792.0,61791.0,0.000913]
[1722673660578,0.75127116,61792.0,61791.0,0.000913]
[1722673660760,0.75276413,61792.0,61791.0,0.000913]
[1722673660971,0.42336324,61792.0,61791.0,0.000913]
[1722673661173,0.16258924,61792.0,61791.0,0.000913]
[1722673661416,0.16258924,61792.0,61791.0,0.00819057]
[1722673661740,0.16258924,61792.0,61791.0,0.00818847]
[1722673662441,0.24920049,61792.0,61791.0,0.00818847]
[1722673662772,0.24820049,61792.0,61791.0,0.00818847]
[1722673662981,0.32081666,61792.0,61791.0,0.00818847]
[1722673663178,0.24820049,61792.0,61791.0,0.00818847]
[1722673663374,0.32081666,61792.0,61791.0,0.00818847]
[1722673663819,0.29661053,61792.0,61791.0,0.00918847]
[1722673664360,0.29661053,61792.0,61791.0,0.003913]
[1722673664556,0.16158924,61792.0,61791.0,0.004913]
[1722673664763,0.20999928,61792.0,61791.0,0.004913]
[1722673664934,0.16158924,61792.0,61791.0,0.004913]
[1722673665135,0.29671379,61792.0,61791.0,0.004913]
[1722673665341,0.20999928,61792.0,61791.0,0.004913]
[1722673665542,0.16158924,61792.0,61791.0,0.004913]
[1722673665786,0.36967511,61792.0,61791.0,0.004913]
[1722673665939,0.44229128,61792.0,61791.0,0.004913]
[1722673666159,0.36967511,61792.0,61791.0,0.004913]
[1722673666757,0.44228385,61792.0,61791.0,0.01217711]
[1722673666980,0.44228385,61792.0,61791.0,0.004913]
[1722673667155,0.36967511,61792.0,61791.0,0.004913]
[1722673667354,0.44228385,61792.0,61791.0,0.004913]
[1722673667797,0.36967511,61792.0,61791.0,0.004913]
[1722673667997,0.46650501,61792.0,61791.0,0.004913]
[1722673668222,0.355587,61792.0,61791.0,0.004913]
[1722673668360,0.36979749,61792.0,61791.0,0.01217711]
[1722673668982,0.44242515,61792.0,61791.0,0.01217711]
[1722673669482,0.44242515,61792.0,61791.0,0.003913]
[1722673669678,0.44242515,61792.0,61791.0,0.000913]
[1722673669679,0.68517415,61792.0,61791.0,0.000913]
[1722673669898,0.85629549,61792.0,61791.0,0.000913]
[1722673670120,0.95312539,61792.0,61791.0,0.000913]
[1722673670333,0.95212539,61792.0,61791.0,0.000913]
[1722673670540,0.95312539,61792.0,61791.0,0.000913]
[1722673670765,0.99649549,61792.0,61791.0,0.000913]
[1722673671173,0.99549549,61792.0,61791.0,0.000913]
[1722673671351,0.99649549,61792.0,61791.0,0.000913]
[1722673671756,1.36028187,61792.0,61791.0,0.000913]
[1722673671957,1.29512459,61792.0,61791.0,0.000913]
[1722673672131,1.70230965,61792.0,61791.0,0.000913]
[1722673672331,1.44815924,61792.0,61791.0,0.000913]
[1722673672694,2.03343042,61792.0,61791.0,0.000913]
[1722673673288,1.86902995,61792.0,61791.0,0.000913]
[1722673673488,1.86902995,61792.0,61791.0,0.001913]
[1722673673489,1.87202995,61792.0,61791.0,0.001913]
[1722673673654,1.87302995,61792.0,61791.0,0.001913]
[1722673673860,1.87302995,61792.0,61791.0,0.000913]
[1722673673861,1.87002995,61792.0,61791.0,0.000913]
[1722673674033,1.86902995,61792.0,61791.0,0.001913]
[1722673674380,1.87302995,61792.0,61791.0,0.002913]
[1722673674882,1.87302995,61792.0,61791.0,0.001913]
[1722673674883,1.87202995,61792.0,61791.0,0.001913]
[1722673675143,2.03623654,61792.0,61791.0,0.002913]
[1722673675971,2.03923654,61792.0,61791.0,0.003913]
[1722673676728,1.87602995,61792.0,61791.0,0.003913]
[1722673678793,1.62505924,61792.0,61791.0,0.003913]
[1722673678942,1.87477455,61792.0,61791.0,0.003913]
[1722673679474,1.75354004,61792.0,61791.0,0.003913]
[1722673680101,1.87423267,61792.0,61791.0,0.003913]
[1722673680378,1.75354004,61792.0,61791.0,0.003913]
[1722673680930,1.8742612,61792.0,61791.0,0.003913]
[1722673681333,1.87272756,61792.0,61791.0,0.003913]
[1722673681513,1.87272756,61792.0,61791.0,0.002913]
[1722673681514,1.87172756,61792.0,61791.0,0.002913]
[1722673681664,1.87372756,61792.0,61791.0,0.003913]
[1722673681881,1.86970956,61792.0,61791.0,0.003913]
[1722673682083,1.86370956,61792.0,61791.0,0.001913]
[1722673682465,1.43306056,61792.0,61791.0,0.002913]
[1722673682666,1.42480052,61792.0,61791.0,0.002913]
[1722673682882,1.27981708,61792.0,61791.0,0.002913]
[1722673683116,1.28298876,61792.0,61791.0,0.002913]
[1722673683474,1.28098876,61792.0,61791.0,0.001913]
[1722673683709,1.28098876,61792.0,61791.0,0.000913]
[1722673683905,1.28098876,61792.0,61791.0,0.001913]
[1722673683906,1.27998876,61792.0,61791.0,0.001913]
[1722673684102,1.28298876,61792.0,61791.0,0.002913]
[1722673684311,1.28098876,61792.0,61791.0,0.001913]
[1722673684522,1.29098876,61792.0,61791.0,0.002913]
[1722673684764,1.29298876,61792.0,61791.0,0.002913]
[1722673684968,1.29319031,61792.0,61791.0,0.002913]
[1722673685167,1.43379031,61792.0,61791.0,0.002913]
[1722673685344,1.43379031,61792.0,61791.0,0.001913]
[1722673685345,1.43079031,61792.0,61791.0,0.001913]
[1722673685686,1.43079031,61792.0,61791.0,0.002913]
[1722673685687,1.57879309,61792.0,61791.0,0.002913]
[1722673685802,1.56579309,61792.0,61791.0,0.001913]
[1722673686346,1.43379031,61792.0,61791.0,0.002913]
[1722673686543,1.57679309,61792.0,61791.0,0.000913]
[1722673686753,1.43379031,61792.0,61791.0,0.002913]
[1722673686966,1.43679031,61792.0,61791.0,0.002913]
[1722673687160,1.58179309,61792.0,61791.0,0.002913]
[1722673687955,1.62481243,61792.0,61791.0,0.002913]
[1722673688194,1.65069031,61792.0,61791.0,0.002913]
[1722673688401,1.76065924,61792.0,61791.0,0.001913]
[1722673688657,1.88758176,61792.0,61791.0,0.002913]
[1722673689106,1.88458176,61792.0,61791.0,0.001913]
[1722673689308,1.88458176,61792.0,61791.0,0.002913]
[1722673689527,1.88758176,61792.0,61791.0,0.002913]
[1722673689676,1.88758176,61792.0,61791.0,0.001913]
[1722673689677,1.88558176,61792.0,61791.0,0.001913]
[1722673689876,1.88758176,61792.0,61791.0,0.002913]
[1722673690264,1.42093276,61792.0,61791.0,0.002913]
[1722673690467,1.43093276,61792.0,61791.0,0.002913]
[1722673692080,1.43414611,61792.0,61791.0,0.002913]
[1722673692555,1.57931917,61792.0,61791.0,0.002913]
[1722673693106,1.43416183,61792.0,61791.0,0.002913]
[1722673694196,1.43344922,61792.0,61791.0,0.002913]
[1722673695456,1.34781582,61792.0,61791.0,0.002913]
[1722673695656,1.43319322,61792.0,61791.0,0.002913]
[1722673697306,1.54378049,61792.0,61791.0,0.002913]
[1722673697645,1.42319322,61792.0,61791.0,0.002913]
[1722673698049,1.56844028,61792.0,61791.0,0.002913]
[1722673698192,1.42319322,61792.0,61791.0,0.002913]
[1722673698601,1.34759322,61792.0,61791.0,0.002913]
[1722673699181,1.34737169,61792.0,61791.0,0.002913]
[1722673699394,1.28277169,61792.0,61791.0,0.002913]
[1722673700150,1.28077169,61792.0,61791.0,0.001913]
[1722673700353,1.28277169,61792.0,61791.0,0.002913]
[1722673700778,1.40309329,61792.0,61791.0,0.002913]
[1722673700982,1.46792329,61792.0,61791.0,0.002913]
[1722673701162,1.46492329,61792.0,61791.0,0.001913]
[1722673701359,1.46792329,61792.0,61791.0,0.002913]
[1722673702026,1.46592329,61792.0,61791.0,0.001913]
[1722673702206,1.46792329,61792.0,61791.0,0.002913]
[1722673702826,1.46592329,61792.0,61791.0,0.001913]
[1722673703103,1.22092763,61792.0,61791.0,0.002913]
[1722673703328,1.47481006,61792.0,61791.0,0.002913]
[1722673704602,1.46481006,61792.0,61791.0,0.002913]
[1722673705008,1.47481006,61792.0,61791.0,0.002913]
[1722673706260,1.22092763,61792.0,61791.0,0.002913]
[1722673706634,1.46351198,61792.0,61791.0,0.002913]
[1722673707126,1.47351198,61792.0,61791.0,0.002913]
[1722673707905,1.4633172,61792.0,61791.0,0.002913]
[1722673708096,1.4733172,61792.0,61791.0,0.002913]
[1722673708304,1.4733172,61792.0,61791.0,0.001913]
[1722673708305,1.4713172,61792.0,61791.0,0.001913]
[1722673708492,1.4713172,61792.0,61791.0,0.002913]
[1722673708493,1.4733172,61792.0,61791.0,0.002913]
[1722673708694,1.4703172,61792.0,61791.0,0.001913]
[1722673709321,1.3860172,61792.0,61791.0,0.001913]
[1722673709728,1.3890172,61792.0,61791.0,0.002913]
[1722673709928,1.38903145,61792.0,61791.0,0.002913]
[1722673710354,1.55259308,61792.0,61791.0,0.002913]
[1722673710555,1.55266932,61792.0,61791.0,0.002913]
[1722673710756,1.38903145,61792.0,61791.0,0.002913]
[1722673711323,1.55266932,61792.0,61791.0,0.002913]
[1722673711802,1.38903145,61792.0,61791.0,0.002913]
[1722673713389,1.3507952,61792.0,61791.0,0.002913]
[1722673713590,1.37884483,61792.0,61791.0,0.002913]
[1722673713787,1.13643285,61792.0,61791.0,0.002913]
[1722673714019,1.5430901,61792.0,61791.0,0.002913]
[1722673714343,1.37935365,61792.0,61791.0,0.002913]
[1722673717134,1.38210231,61792.0,61791.0,0.002913]
[1722673717952,1.39210231,61792.0,61791.0,0.002913]
[1722673718295,1.38210231,61792.0,61791.0,0.002913]
[1722673720578,1.38297254,61792.0,61791.0,0.002913]
[1722673724193,1.34171333,61792.0,61791.0,0.002913]
[1722673724417,1.3860556,61792.0,61791.0,0.002913]
[1722673724835,1.38605557,61792.0,61791.0,0.002913]
[1722673725673,1.32122557,61792.0,61791.0,0.002913]
[1722673726352,1.32122557,61792.0,61791.0,0.083013]
[1722673727771,1.32108219,61792.0,61791.0,0.083013]
[1722673729137,1.32108219,61792.0,61791.0,0.002913]
[1722673731355,1.07160285,61792.0,61791.0,0.002913]
[1722673731566,1.31988007,61792.0,61791.0,0.002913]
[1722673735149,1.31758828,61792.0,61791.0,0.002913]
[1722673735604,1.31749261,61792.0,61791.0,0.002913]
[1722673736098,1.32749261,61792.0,61791.0,0.002913]
[1722673736897,1.32740543,61792.0,61791.0,0.002913]
[1722673737133,1.32740543,61792.0,61772.0,0.47251164]
[1722673737134,0.0642,61773.0,61772.0,0.47251164]
[1722673737379,0.60713,61766.0,61765.0,0.0794]
[1722673737598,0.60713,61766.0,61761.0,0.0777]
[1722673737599,0.121433,61762.0,61761.0,0.0777]
[1722673737802,0.364318,61759.0,61758.0,0.0642]
[1722673738036,0.90554001,61759.0,61758.0,0.0642]
[1722673738161,1.05115134,61759.0,61758.0,0.0642]
[1722673738391,1.05115134,61759.0,61742.0,0.32169494]
[1722673738392,0.252886,61758.0,61741.0,0.1419]
[1722673738615,0.10479434,61742.0,61741.0,0.1419]
[1722673738824,0.23020794,61742.0,61741.0,0.1419]
[1722673739235,0.35168094,61742.0,61741.0,0.1419]
[1722673739443,0.27893224,61742.0,61741.0,0.1419]
[1722673739806,0.81326404,61742.0,61741.0,0.0777]
[1722673740020,0.81326404,61742.0,61729.0,0.032363]
[1722673740021,0.364489,61730.0,61729.0,0.032363]
[1722673740229,0.88223373,61730.0,61729.0,0.032363]
[1722673740454,0.73718179,61730.0,61729.0,0.032363]
[1722673740658,0.50728979,61730.0,61729.0,0.032363]
[1722673740858,0.75028279,61730.0,61729.0,0.032363]
[1722673741061,0.663782,61730.0,61729.0,0.032363]
[1722673741413,0.88599533,61730.0,61729.0,0.032363]
[1722673741700,0.76494124,61730.0,61729.0,0.032363]
[1722673742343,0.82727243,61730.0,61729.0,0.033363]
[1722673742626,0.77894124,61730.0,61729.0,0.033363]
[1722673743042,0.79094124,61730.0,61729.0,0.034363]
[1722673743454,0.77894124,61730.0,61729.0,0.033363]
[1722673743608,0.76494124,61730.0,61729.0,0.032363]
[1722673743816,0.76494124,61730.0,61729.0,0.033363]
[1722673743817,0.77794124,61730.0,61729.0,0.033363]
[1722673744026,0.77794124,61730.0,61729.0,0.034363]
[1722673744027,0.79094124,61730.0,61729.0,0.034363]
[1722673744373,0.79094124,61730.0,61729.0,0.033363]
[1722673744374,0.77794124,61730.0,61729.0,0.033363]
[1722673744572,1.03393424,61730.0,61729.0,0.034363]
[1722673744890,1.02093424,61730.0,61729.0,0.033363]
[1722673745323,1.01993424,61730.0,61729.0,0.033363]
[1722673745897,1.01993424,61730.0,61729.0,0.032363]
[1722673746110,1.00793424,61730.0,61729.0,0.032363]
[1722673746316,1.01993424,61730.0,61729.0,0.033363]
[1722673746653,1.00793424,61730.0,61729.0,0.032363]
[1722673747079,1.01993424,61730.0,61729.0,0.033363]
[1722673747474,1.03193424,61730.0,61729.0,0.034363]
[1722673748351,1.01993424,61730.0,61729.0,0.033363]
[1722673748547,1.01993424,61730.0,61729.0,0.034363]
[1722673748764,1.03193424,61730.0,61729.0,0.034363]
[1722673753073,0.54594824,61730.0,61729.0,0.034363]
[1722673753300,0.30295524,61730.0,61729.0,0.034363]
[1722673753499,0.30295524,61730.0,61729.0,0.097763]
[1722673754063,0.54594824,61730.0,61729.0,0.097763]
[1722673754279,0.30295524,61730.0,61729.0,0.097763]
[1722673754770,0.18145924,61730.0,61729.0,0.19031033]
[1722673754973,0.18145924,61730.0,61729.0,0.79780233]
[1722673755196,0.18145924,61730.0,61729.0,0.31180833]
[1722673755546,0.18145924,61730.0,61729.0,0.55380533]
[1722673755547,0.16945924,61730.0,61729.0,0.55380533]
[1722673755764,0.18145924,61730.0,61729.0,0.55480533]
[1722673756139,0.18145924,61730.0,61729.0,0.19031033]
[1722673756331,0.16945924,61730.0,61729.0,0.18931033]
[1722673756785,0.15745924,61730.0,61729.0,0.30980833]
[1722673756987,0.15736324,61730.0,61729.0,0.30980833]
[1722673757193,0.15736324,61730.0,61729.0,0.18931033]
[1722673757523,0.15736324,61730.0,61729.0,0.31080833]
[1722673759828,0.15736324,61730.0,61729.0,0.18931033]
[1722673760228,0.15736324,61730.0,61729.0,0.31080833]
[1722673761062,0.15736324,61730.0,61729.0,0.55380533]
[1722673764409,0.15819324,61730.0,61729.0,0.55380533]
[1722673764995,0.15819324,61730.0,61729.0,0.79680233]
[1722673765201,0.15819324,61730.0,61729.0,1.03979933]
[1722673765202,0.00083,61730.0,61729.0,1.03979933]
[1722673765400,0.00083,61730.0,61729.0,1.13979933]
[1722673765967,0.00083,61730.0,61729.0,0.89680233]
[1722673766924,0.00083,61730.0,61729.0,0.89580233]
[1722673767324,0.00083,61730.0,61729.0,0.89680233]
[1722673767507,0.00083,61730.0,61729.0,0.89580233]
[1722673767714,0.00183,61730.0,61729.0,0.90780233]
[1722673768932,0.00183,61730.0,61729.0,0.91780233]
[1722673769138,0.00283,61730.0,61729.0,0.91780233]
[1722673778802,0.00283,61730.0,61729.0,0.67480533]
[1722673778803,0.16028924,61730.0,61729.0,0.67480533]
[1722673780189,0.16028924,61730.0,61729.0,0.31031033]
[1722673780396,0.16028924,61730.0,61729.0,0.16371033]
[1722673783272,0.16028924,61730.0,61729.0,0.28520833]
[1722673784332,0.16028924,61730.0,61729.0,0.52820533]
[1722673784764,0.00283,61730.0,61729.0,0.52820533]
[1722673784974,0.00283,61730.0,61729.0,0.77120233]
[1722673785149,0.00283,61730.0,61729.0,0.82750233]
[1722673787929,0.00283,61730.0,61729.0,0.96920233]
[1722673788318,0.00283,61730.0,61729.0,1.21219933]
[1722673792738,0.00283,61730.0,61729.0,1.32934763]
[1722673793613,0.00283,61730.0,61729.0,1.58234463]
[1722673793834,0.04827391,61751.0,61747.0,0.0563]
[1722673794080,0.15884783,61754.0,61752.0,0.121453]
[1722673794081,0.04827391,61753.0,61752.0,0.121453]
[1722673794294,0.0866295,61753.0,61752.0,0.36436]
[1722673794494,0.1073,61757.0,61754.0,0.121448]
[1722673794705,0.1073,61757.0,61752.0,0.25179348]
[1722673794706,0.09327391,61757.0,61756.0,0.121445]
[1722673794908,0.18008721,61757.0,61756.0,0.121445]
[1722673795062,0.28909033,61757.0,61756.0,0.00888648]
[1722673795288,0.20245924,61757.0,61756.0,0.00888648]
[1722673795489,0.20245924,61757.0,61754.0,0.121449]
[1722673795739,0.15745924,61756.0,61754.0,0.123449]
[1722673796500,0.15745924,61756.0,61754.0,0.002]
[1722673796501,0.20591536,61756.0,61754.0,0.002]
[1722673797413,0.15745924,61756.0,61753.0,0.121451]
[1722673797642,0.20591536,61756.0,61753.0,0.121451]
[1722673797891,0.20591536,61756.0,61754.0,0.001]
[1722673798121,0.15828924,61756.0,61750.0,0.242912]
[1722673798352,0.04845612,61755.0,61752.0,0.121452]
[1722673798578,0.04845612,61755.0,61754.0,0.001]
[1722673798817,0.04928612,61756.0,61754.0,0.001]
[1722673799050,0.04845612,61755.0,61754.0,0.001]
[1722673799292,0.00083,61756.0,61754.0,0.001]
[1722673799529,0.04928612,61756.0,61754.0,0.001]
[1722673799774,0.15745924,61755.0,61754.0,0.001]
[1722673800497,0.15745924,61755.0,61753.0,0.12145]
[1722673800755,0.20591178,61755.0,61753.0,0.12145]
[1722673800990,0.15745924,61755.0,61754.0,0.001]
[1722673801220,0.15745924,61755.0,61754.0,0.002]
[1722673801484,0.04928254,61756.0,61755.0,0.121447]
[1722673801485,0.00083,61756.0,61755.0,0.121447]
[1722673801839,0.00083,61756.0,61755.0,0.850937]
[1722673802023,0.00083,61756.0,61755.0,1.093832]
[1722673803552,0.00083,61756.0,61755.0,0.850937]
[1722673804446,0.00083,61756.0,61755.0,0.860937]
[1722673804614,0.00083,61756.0,61755.0,0.871937]
[1722673805120,0.00083,61756.0,61755.0,0.861937]
[1722673805501,0.00083,61756.0,61755.0,0.871937]
[1722673805881,0.15828924,61756.0,61755.0,0.485342]
[1722673806924,0.15828924,61756.0,61755.0,0.728237]
[1722673807334,0.15828924,61756.0,61755.0,0.718237]
[1722673807453,0.15828924,61756.0,61755.0,0.707237]
[1722673807647,0.15828924,61756.0,61755.0,0.717237]
[1722673808167,0.15828924,61756.0,61755.0,0.707237]
[1722673808370,0.15828924,61756.0,61755.0,0.714237]
[1722673808574,0.15828924,61756.0,61755.0,0.720237]
[1722673809540,0.15828924,61756.0,61755.0,0.477342]
[1722673809748,0.34553424,61756.0,61755.0,0.113]
[1722673809954,0.34553424,61756.0,61755.0,0.013]
[1722673810775,0.34553424,61756.0,61755.0,0.007]
[1722673811048,0.34853424,61756.0,61755.0,0.007]
[1722673811224,0.34853424,61756.0,61752.0,0.1]
[1722673811225,0.22708924,61756.0,61752.0,0.1]
[1722673811403,0.22708924,61756.0,61754.0,0.364348]
[1722673811404,0.15745924,61755.0,61754.0,0.364348]
[1722673811608,0.15745924,61755.0,61754.0,0.464348]
[1722673811817,0.15745924,61755.0,61754.0,0.707247]
[1722673812016,0.00583,61756.0,61755.0,0.442142]
[1722673812214,0.16028924,61756.0,61755.0,0.785037]
[1722673812480,0.15828924,61756.0,61755.0,0.785037]
[1722673812630,0.16028924,61756.0,61755.0,0.785037]
[1722673813030,0.15828924,61756.0,61755.0,0.785037]
[1722673813249,0.15828924,61756.0,61755.0,0.707237]
[1722673813445,0.15828924,61756.0,61755.0,0.1]
[1722673813649,0.15828924,61756.0,61752.0,0.121452]
[1722673813826,0.15745924,61755.0,61753.0,0.1]